fUST/lending_fUST_20240322
["ID","MTS","AMOUNT","RATE_DAILY","PERIOD"]
[320051212,1711116644360,-500.0,0.00027397,2]
[320051213,1711116644370,-500.43857309,0.00027397,2]
[320051214,1711116644380,-500.0,0.00027397,2]
[320051215,1711116644390,-500.0,0.00027397,2]
[320051216,1711116644399,-500.0,0.00027397,2]
[320051217,1711116644409,-500.0,0.00027397,2]
[320051218,1711116644418,-500.0,0.00027397,2]
[320051219,1711116644429,-500.0,0.00027397,2]
[320051220,1711116644439,-500.0,0.00027397,2]
[320051221,1711116644448,-500.0,0.00027397,2]
[320051222,1711116644458,-500.0,0.00027397,2]
[320051223,1711116644467,-500.0,0.00027397,2]
[320051224,1711116644476,-500.0,0.00027397,2]
[320051225,1711116644485,-500.0,0.00027397,2]
[320051226,1711116644494,-500.0,0.00027397,2]
[320051227,1711116644503,-500.0,0.00027397,2]
[320051228,1711116644512,-500.0,0.00027397,2]
[320051229,1711116644522,-500.0,0.00027397,2]
[320051230,1711116644531,-500.0,0.00027397,2]
[320051231,1711116644540,-370.02171051,0.00027397,2]
[320051232,1711116644549,-500.0,0.00027397,2]
[320051233,1711116644558,-500.0,0.00027397,2]
[320051234,1711116644567,-417.41,0.00027397,2]
[320051235,1711116644576,-500.0,0.00027397,2]
[320051236,1711116644585,-500.0,0.00027397,2]
[320051237,1711116644595,-500.0,0.00027397,2]
[320051238,1711116644604,-500.0,0.00027397,2]
[320051239,1711116644613,-500.0,0.00027397,2]
[320051240,1711116644622,-500.0,0.00027397,2]
[320051241,1711116644631,-500.0,0.00027397,2]
[320051242,1711116644640,-500.0,0.00027397,2]
[320051243,1711116644649,-500.0,0.00027397,2]
[320051244,1711116644658,-500.0,0.00027397,2]
[320051245,1711116644667,-500.0,0.00027397,2]
[320051246,1711116644676,-500.0,0.00027397,2]
[320051247,1711116644690,-500.0,0.00027397,2]
[320051248,1711116644699,-298.13990406,0.00027397,2]
[320051249,1711116644708,-500.0,0.00027397,2]
[320051250,1711116644718,-500.0,0.00027397,2]
[320051251,1711116644727,-500.0,0.00027397,2]
[320051252,1711116644736,-500.0,0.00027397,2]
[320051253,1711116644746,-500.0,0.00027397,2]
[320051254,1711116644755,-1220.64,0.00027397,2]
[320051255,1711116644764,-500.0,0.00027397,2]
[320051256,1711116644773,-500.0,0.00027397,2]
[320051257,1711116644782,-500.0,0.00027397,2]
[320051258,1711116644792,-500.0,0.00027397,2]
[320051259,1711116644801,-560.8,0.00027397,2]
[320051260,1711116644810,-500.0,0.00027397,2]
[320051261,1711116644819,-500.0,0.00027397,2]
[320051262,1711116644828,-500.0,0.00027397,2]
[320051263,1711116644837,-531.4265579,0.00027397,2]
[320051264,1711116644847,-1173.27,0.00027397,2]
[320051265,1711116644856,-500.0,0.00027397,2]
[320051266,1711116644866,-500.0,0.00027397,2]
[320051267,1711116644877,-500.0,0.00027397,2]
[320051268,1711116644886,-500.0,0.00027397,2]
[320051269,1711116644898,-500.0,0.00027397,2]
[320051270,1711116644907,-500.0,0.00027397,2]
[320051271,1711116644917,-500.0,0.00027397,2]
[320051272,1711116644925,-500.0,0.00027397,2]
[320051273,1711116644939,-500.0,0.00027397,2]
[320051274,1711116644949,-500.0,0.00027397,2]
[320051275,1711116644958,-500.0,0.00027397,2]
[320051276,1711116644968,-500.0,0.00027397,2]
[320051277,1711116644979,-500.0,0.00027397,2]
[320051278,1711116644988,-500.0,0.00027397,2]
[320051279,1711116644997,-500.0,0.00027397,2]
[320051280,1711116645008,-500.0,0.00027397,2]
[320051281,1711116645019,-500.0,0.00027397,2]
[320051282,1711116645029,-223.99328037,0.00027397,2]
[320051283,1711116645038,-500.0,0.00027397,2]
[320051284,1711116645051,-500.0,0.00027397,2]
[320051285,1711116645061,-500.0,0.00027397,2]
[320051286,1711116645069,-500.0,0.00027397,2]
[320051287,1711116645079,-500.0,0.00027397,2]
[320051288,1711116645088,-1000.0,0.00027397,2]
[320051289,1711116645097,-500.0,0.00027397,2]
[320051290,1711116645106,-500.0,0.00027397,2]
[320051291,1711116645115,-4580.46,0.00027397,2]
[320051292,1711116645125,-908.89,0.00027397,2]
[320051293,1711116645135,-500.0,0.00027397,2]
[320051294,1711116645145,-500.0,0.00027397,2]
[320051295,1711116645155,-500.0,0.00027397,2]
[320051296,1711116645165,-279.05807573,0.00027397,2]
[320051297,1711116645176,-1221.33,0.00027397,2]
[320051298,1711116645191,-500.0,0.00027397,2]
[320051299,1711116645202,-503.0735052,0.00027397,2]
[320051300,1711116645213,-3147.13,0.00027397,2]
[320051301,1711116645223,-500.0,0.00027397,2]
[320051302,1711116645233,-11554.42,0.00027397,2]
[320051303,1711116645243,-1468.1,0.00027397,2]
[320051304,1711116645254,-500.0,0.00027397,2]
[320051305,1711116645263,-1670.06,0.00027397,2]
[320051306,1711116645272,-500.0,0.00027397,2]
[320051307,1711116645282,-1507.25,0.00027397,2]
[320051308,1711116645292,-500.0,0.00027397,2]
[320051310,1711116645301,-500.85141942,0.00027397,2]
[320051312,1711116645310,-520.81521444,0.00027397,2]
[320051313,1711116645319,-500.0,0.00027397,2]
[320051315,1711116645330,-500.0,0.00027397,2]
[320051317,1711116645339,-500.0,0.00027397,2]
[320051319,1711116645349,-500.0,0.00027397,2]
[320051321,1711116645358,-500.0,0.00027397,2]
[320051323,1711116645368,-500.0,0.00027397,2]
[320051325,1711116645377,-906.99,0.00027397,2]
[320051327,1711116645387,-1211.82,0.00027397,2]
[320051329,1711116645396,-500.0,0.00027397,2]
[320051331,1711116645405,-500.0,0.00027397,2]
[320051333,1711116645415,-500.0,0.00027397,2]
[320051334,1711116645424,-500.0,0.00027397,2]
[320051336,1711116645438,-2487.42,0.00027397,2]
[320051337,1711116645448,-500.0,0.00027397,2]
[320051338,1711116645457,-1601.34,0.00027397,2]
[320051339,1711116645467,-500.0,0.00027397,2]
[320051340,1711116645479,-661.19,0.00027397,2]
[320051341,1711116645488,-500.0,0.00027397,2]
[320051342,1711116645498,-500.0,0.00027397,2]
[320051343,1711116645507,-500.0,0.00027397,2]
[320051344,1711116645517,-1187.32,0.00027397,2]
[320051345,1711116645526,-500.0,0.00027397,2]
[320051346,1711116645536,-500.0,0.00027397,2]
[320051347,1711116645546,-500.0,0.00027397,2]
[320051348,1711116645556,-500.0,0.00027397,2]
[320051349,1711116645565,-500.0,0.00027397,2]
[320051350,1711116645575,-2613.92,0.00027397,2]
[320051352,1711116645584,-1440.87,0.00027397,2]
[320051353,1711116645593,-500.0,0.00027397,2]
[320051355,1711116645602,-500.0,0.00027397,2]
[320051356,1711116645611,-500.0,0.00027397,2]
[320051358,1711116645621,-500.0,0.00027397,2]
[320051360,1711116645630,-500.0,0.00027397,2]
[320051361,1711116645640,-500.0,0.00027397,2]
[320051362,1711116645649,-500.0,0.00027397,2]
[320051363,1711116645659,-500.0,0.00027397,2]
[320051365,1711116645668,-151.0,0.00027397,2]
[320051366,1711116645679,-500.0,0.00027397,2]
[320051367,1711116645694,-500.0,0.00027397,2]
[320051368,1711116645705,-17004.72,0.00027397,2]
[320051369,1711116645716,-500.0,0.00027397,2]
[320051371,1711116645727,-1098.42,0.00027397,2]
[320051372,1711116645738,-500.0,0.00027397,2]
[320051373,1711116645749,-500.0,0.00027397,2]
[320051374,1711116645759,-500.0,0.00027397,2]
[320051375,1711116645769,-3680.17,0.00027397,2]
[320051376,1711116645779,-1124.87,0.00027397,2]
[320051377,1711116645789,-415.73089763,0.00027397,2]
[320051378,1711116645799,-526.08,0.00027397,2]
[320051379,1711116645809,-858.34,0.00027397,2]
[320051380,1711116645819,-500.0,0.00027397,2]
[320051381,1711116645828,-500.0,0.00027397,2]
[320051382,1711116645839,-500.0,0.00027397,2]
[320051383,1711116645851,-500.0,0.00027397,2]
[320051385,1711116645862,-500.0,0.00027397,2]
[320051386,1711116645872,-500.0,0.00027397,2]
[320051388,1711116645885,-500.0,0.00027397,2]
[320051390,1711116645896,-500.0,0.00027397,2]
[320051391,1711116645906,-500.0,0.00027397,2]
[320051392,1711116645916,-500.0,0.00027397,2]
[320051393,1711116645927,-500.0,0.00027397,2]
[320051394,1711116645947,-500.0,0.00027397,2]
[320051395,1711116645959,-500.0,0.00027397,2]
[320051396,1711116645970,-297.45416834,0.00027397,2]
[320051397,1711116645983,-500.0,0.00027397,2]
[320051398,1711116645994,-500.0,0.00027397,2]
[320051399,1711116646004,-500.0,0.00027397,2]
[320051400,1711116646013,-500.0,0.00027397,2]
[320051401,1711116646023,-500.0,0.00027397,2]
[320051402,1711116646032,-625.39895139,0.00027397,2]
[320051403,1711116646041,-500.0,0.00027397,2]
[320051404,1711116646051,-500.0,0.00027397,2]
[320051405,1711116646061,-656.49,0.00027397,2]
[320051406,1711116646071,-1150.67,0.00027397,2]
[320051407,1711116646081,-166.666666,0.00027397,2]
[320051408,1711116646090,-160.43342052,0.00027614,2]
[320051409,1711116646099,-1617.07893366,0.00027944,2]
[320051410,1711116646108,-500.0,0.00027945,2]
[320051411,1711116646118,-500.0,0.00027945,2]
[320051413,1711116646127,-500.0,0.00027945,2]
[320051414,1711116646136,-500.0,0.00027945,2]
[320051416,1711116646146,-500.0,0.00027945,2]
[320051417,1711116646156,-500.0,0.00027945,2]
[320051419,1711116646165,-500.0,0.00027945,2]
[320051420,1711116646266,-500.0,0.00027945,2]
[320051421,1711116646292,-500.0,0.00027945,2]
[320051422,1711116646302,-500.0,0.00027945,2]
[320051423,1711116646312,-500.0,0.00027945,2]
[320051424,1711116646322,-500.0,0.00027945,2]
[320051425,1711116646332,-500.0,0.00027945,2]
[320051426,1711116646341,-500.0,0.00027945,2]
[320051427,1711116646351,-500.0,0.00027945,2]
[320051428,1711116646360,-321.61325991,0.00027945,2]
[320051429,1711116646369,-500.0,0.00027945,2]
[320051430,1711116646378,-500.0,0.00027945,2]
[320051431,1711116646388,-500.0,0.00027945,2]
[320051432,1711116646398,-500.0,0.00027945,2]
[320051433,1711116646407,-500.0,0.00027945,2]
[320051435,1711116646418,-500.0,0.00027945,2]
[320051437,1711116646427,-500.0,0.00027945,2]
[320051438,1711116646440,-517.06,0.00027945,2]
[320051439,1711116646449,-1013.15,0.00027945,2]
[320051440,1711116646459,-500.0,0.00027945,2]
[320051441,1711116646468,-500.0,0.00027945,2]
[320051442,1711116646477,-500.0,0.00027945,2]
[320051444,1711116646486,-260.63342355,0.00027945,2]
[320051445,1711116646495,-500.0,0.00027945,2]
[320051446,1711116646505,-431.89597966,0.00027945,2]
[320051448,1711116646514,-302.34184997,0.00027945,2]
[320051450,1711116646523,-500.0,0.00027945,2]
[320051451,1711116646533,-1285.99,0.00027945,2]
[320051452,1711116646542,-1770.77,0.00027945,2]
[320051453,1711116646551,-604.19,0.00027945,2]
[320051454,1711116646560,-500.0,0.00027945,2]
[320051455,1711116646569,-551.67,0.00027945,2]
[320051457,1711116646579,-500.0,0.00027945,2]
[320051458,1711116646588,-500.0,0.00027945,2]
[320051459,1711116646597,-879.38,0.00027945,2]
[320051460,1711116646607,-904.45,0.00027945,2]
[320051461,1711116646616,-500.0,0.00027945,2]
[320051462,1711116646625,-500.0,0.00027945,2]
[320051463,1711116646635,-500.0,0.00027945,2]
[320051464,1711116646645,-500.0,0.00027945,2]
[320051465,1711116646654,-500.0,0.00027945,2]
[320051466,1711116646663,-500.0,0.00027945,2]
[320051467,1711116646672,-500.0,0.00027945,2]
[320051468,1711116646685,-500.0,0.00027945,2]
[320051469,1711116646694,-500.0,0.00027945,2]
[320051470,1711116646703,-500.0,0.00027945,2]
[320051471,1711116646713,-500.0,0.00027945,2]
[320051472,1711116646722,-500.0,0.00027945,2]
[320051473,1711116646732,-500.0,0.00027945,2]
[320051474,1711116646741,-500.0,0.00027945,2]
[320051475,1711116646750,-500.0,0.00027945,2]
[320051476,1711116646759,-500.0,0.00027945,2]
[320051477,1711116646769,-500.0,0.00027945,2]
[320051478,1711116646778,-500.0,0.00027945,2]
[320051479,1711116646787,-500.0,0.00027945,2]
[320051480,1711116646798,-500.0,0.00027945,2]
[320051481,1711116646808,-500.0,0.00027945,2]
[320051482,1711116646817,-500.0,0.00027945,2]
[320051483,1711116646827,-486.53231506,0.00027945,2]
[320051484,1711116646837,-500.0,0.00027945,2]
[320051485,1711116646846,-500.0,0.00027945,2]
[320051486,1711116646855,-500.0,0.00027945,2]
[320051487,1711116646865,-500.0,0.00027945,2]
[320051488,1711116646874,-500.0,0.00027945,2]
[320051489,1711116646883,-500.0,0.00027945,2]
[320051490,1711116646892,-500.0,0.00027945,2]
[320051491,1711116646904,-500.0,0.00027945,2]
[320051492,1711116646913,-500.0,0.00027945,2]
[320051493,1711116646923,-509.0,0.00027945,2]
[320051494,1711116646936,-500.0,0.00027945,2]
[320051495,1711116646946,-500.0,0.00027945,2]
[320051496,1711116646955,-500.0,0.00027945,2]
[320051497,1711116646965,-500.0,0.00027945,2]
[320051498,1711116646976,-500.0,0.00027945,2]
[320051499,1711116646985,-500.0,0.00027945,2]
[320051500,1711116646994,-500.0,0.00027945,2]
[320051501,1711116647003,-500.0,0.00027945,2]
[320051502,1711116647013,-500.0,0.00027945,2]
[320051503,1711116647022,-500.0,0.00027945,2]
[320051504,1711116647031,-500.0,0.00027945,2]
[320051505,1711116647041,-500.0,0.00027945,2]
[320051506,1711116647050,-500.0,0.00027945,2]
[320051507,1711116647059,-500.0,0.00027945,2]
[320051508,1711116647069,-500.0,0.00027945,2]
[320051509,1711116647077,-1220.64,0.00027945,2]
[320051510,1711116647086,-500.0,0.00027945,2]
[320051511,1711116647094,-500.0,0.00027945,2]
[320051512,1711116647103,-394.71182017,0.00027945,2]
[320051513,1711116647112,-500.0,0.00027945,2]
[320051514,1711116647121,-560.8,0.00027945,2]
[320051515,1711116647130,-1173.27,0.00027945,2]
[320051516,1711116647139,-500.0,0.00027945,2]
[320051517,1711116647148,-500.26798743,0.00027945,2]
[320051518,1711116647158,-500.0,0.00027945,2]
[320051519,1711116647167,-500.0,0.00027945,2]
[320051520,1711116647178,-500.0,0.00027945,2]
[320051521,1711116647195,-500.0,0.00027945,2]
[320051522,1711116647204,-500.0,0.00027945,2]
[320051523,1711116647215,-500.0,0.00027945,2]
[320051524,1711116647226,-500.0,0.00027945,2]
[320051525,1711116647238,-500.0,0.00027945,2]
[320051526,1711116647248,-500.0,0.00027945,2]
[320051527,1711116647265,-494.87533413,0.00027945,2]
[320051528,1711116647275,-500.0,0.00027945,2]
[320051529,1711116647286,-500.0,0.00027945,2]
[320051530,1711116647297,-500.0,0.00027945,2]
[320051531,1711116647307,-1000.0,0.00027945,2]
[320051532,1711116647317,-500.0,0.00027945,2]
[320051533,1711116647328,-500.0,0.00027945,2]
[320051534,1711116647338,-4580.46,0.00027945,2]
[320051535,1711116647348,-908.89,0.00027945,2]
[320051536,1711116647360,-500.0,0.00027945,2]
[320051537,1711116647370,-500.0,0.00027945,2]
[320051538,1711116647380,-500.0,0.00027945,2]
[320051539,1711116647390,-1221.33,0.00027945,2]
[320051540,1711116647401,-500.0,0.00027945,2]
[320051541,1711116647411,-3147.13,0.00027945,2]
[320051542,1711116647421,-500.0,0.00027945,2]
[320051543,1711116647435,-5956.85015673,0.00027945,2]
[320051544,1711116647454,-1008.176,0.00027945,2]
[320051545,1711116647555,1042.96963488,0.000199,2]
[320051546,1711116648840,-252.24063685,0.0002516,2]
[320051547,1711116648855,-1533.97274494,0.00025674,2]
[320051548,1711116648867,-470.70840451,0.00025674,2]
[320051549,1711116648880,-271.11235426,0.00027397,2]
[320051550,1711116648893,-500.0,0.00027397,2]
[320051551,1711116648904,-4589.39384327,0.00027945,2]
[320051552,1711116648915,-1468.1,0.00027945,2]
[320051553,1711116648928,-500.0,0.00027945,2]
[320051554,1711116648943,-1670.06,0.00027945,2]
[320051555,1711116648953,-500.0,0.00027945,2]
[320051556,1711116648963,-1507.25,0.00027945,2]
[320051557,1711116648974,-500.0,0.00027945,2]
[320051558,1711116648985,-500.0,0.00027945,2]
[320051559,1711116648994,-500.0,0.00027945,2]
[320051560,1711116649004,-500.0,0.00027945,2]
[320051561,1711116649013,-500.0,0.00027945,2]
[320051562,1711116649022,-500.0,0.00027945,2]
[320051563,1711116649032,-500.0,0.00027945,2]
[320051564,1711116649041,-906.99,0.00027945,2]
[320051565,1711116649051,-1211.82,0.00027945,2]
[320051566,1711116649060,-500.0,0.00027945,2]
[320051567,1711116649069,-500.0,0.00027945,2]
[320051568,1711116649078,-500.0,0.00027945,2]
[320051569,1711116649088,-500.0,0.00027945,2]
[320051570,1711116649098,-2487.42,0.00027945,2]
[320051571,1711116649107,-500.0,0.00027945,2]
[320051572,1711116649116,-1601.34,0.00027945,2]
[320051573,1711116649126,-500.0,0.00027945,2]
[320051574,1711116649135,-661.19,0.00027945,2]
[320051575,1711116649145,-500.0,0.00027945,2]
[320051576,1711116649155,-500.0,0.00027945,2]
[320051577,1711116649164,-500.0,0.00027945,2]
[320051578,1711116649174,-1187.32,0.00027945,2]
[320051579,1711116649188,-500.0,0.00027945,2]
[320051580,1711116649197,-564.25077004,0.00027945,2]
[320051581,1711116649206,-500.0,0.00027945,2]
[320051582,1711116649215,-500.0,0.00027945,2]
[320051583,1711116649224,-500.0,0.00027945,2]
[320051584,1711116649234,-2613.92,0.00027945,2]
[320051585,1711116649243,-1440.87,0.00027945,2]
[320051586,1711116649253,-500.0,0.00027945,2]
[320051587,1711116649262,-500.0,0.00027945,2]
[320051588,1711116649272,-500.0,0.00027945,2]
[320051589,1711116649282,-500.0,0.00027945,2]
[320051590,1711116649291,-500.0,0.00027945,2]
[320051591,1711116649300,-500.0,0.00027945,2]
[320051592,1711116649309,-500.0,0.00027945,2]
[320051593,1711116649319,-500.0,0.00027945,2]
[320051594,1711116649328,-151.0,0.00027945,2]
[320051595,1711116649337,-500.0,0.00027945,2]
[320051596,1711116649347,-500.0,0.00027945,2]
[320051597,1711116649356,-17004.72,0.00027945,2]
[320051598,1711116649365,-500.0,0.00027945,2]
[320051599,1711116649375,-1098.42,0.00027945,2]
[320051600,1711116649384,-500.0,0.00027945,2]
[320051601,1711116649393,-500.0,0.00027945,2]
[320051602,1711116649403,-500.0,0.00027945,2]
[320051603,1711116649412,-3680.17,0.00027945,2]
[320051604,1711116649421,-1124.87,0.00027945,2]
[320051605,1711116649431,-526.08,0.00027945,2]
[320051606,1711116649445,-858.34,0.00027945,2]
[320051607,1711116649454,-500.0,0.00027945,2]
[320051608,1711116649464,-500.0,0.00027945,2]
[320051609,1711116649473,-500.0,0.00027945,2]
[320051610,1711116649482,-500.0,0.00027945,2]
[320051611,1711116649491,-500.0,0.00027945,2]
[320051612,1711116649500,-500.0,0.00027945,2]
[320051613,1711116649511,-500.0,0.00027945,2]
[320051614,1711116649520,-656.49,0.00027945,2]
[320051615,1711116649530,-1150.67,0.00027945,2]
[320051616,1711116649539,-166.666666,0.00028038,2]
[320051617,1711116649548,-1566.34836889,0.00028157,2]
[320051618,1711116649557,-807.30445512,0.00028491,2]
[320051619,1711116649566,-14024.59,0.00028491,2]
[320051620,1711116649575,-500.0,0.00028491,2]
[320051621,1711116649584,-500.0,0.00028493,2]
[320051622,1711116649593,-500.0,0.00028493,2]
[320051623,1711116649602,-500.0,0.00028493,2]
[320051624,1711116649610,-491.35932437,0.00028493,2]
[320051625,1711116649619,-500.0,0.00028493,2]
[320051626,1711116649628,-500.0,0.00028493,2]
[320051627,1711116649636,-500.0,0.00028493,2]
[320051628,1711116649645,-500.0,0.00028493,2]
[320051629,1711116649655,-500.0,0.00028493,2]
[320051630,1711116649664,-500.0,0.00028493,2]
[320051631,1711116649674,-500.0,0.00028493,2]
[320051632,1711116649687,-500.0,0.00028493,2]
[320051633,1711116649696,-500.0,0.00028493,2]
[320051634,1711116649809,-517.06,0.00028493,2]
[320051635,1711116649821,-1013.15,0.00028493,2]
[320051636,1711116649831,-500.0,0.00028493,2]
[320051637,1711116649841,-1285.99,0.00028493,2]
[320051638,1711116649850,-1770.77,0.00028493,2]
[320051639,1711116649859,-604.19,0.00028493,2]
[320051640,1711116649869,-551.67,0.00028493,2]
[320051641,1711116649880,-500.0,0.00028493,2]
[320051642,1711116649889,-500.0,0.00028493,2]
[320051643,1711116649898,-879.38,0.00028493,2]
[320051644,1711116649913,-904.45,0.00028493,2]
[320051645,1711116649922,-500.0,0.00028493,2]
[320051646,1711116649932,-500.0,0.00028493,2]
[320051647,1711116649946,-500.0,0.00028493,2]
[320051648,1711116649955,-500.0,0.00028493,2]
[320051649,1711116649965,-500.0,0.00028493,2]
[320051650,1711116649976,-500.0,0.00028493,2]
[320051651,1711116649986,-500.0,0.00028493,2]
[320051652,1711116649996,-500.0,0.00028493,2]
[320051653,1711116650006,-500.0,0.00028493,2]
[320051654,1711116650015,-500.0,0.00028493,2]
[320051655,1711116650025,-500.0,0.00028493,2]
[320051656,1711116650035,-500.0,0.00028493,2]
[320051657,1711116650045,-500.0,0.00028493,2]
[320051658,1711116650054,-500.0,0.00028493,2]
[320051659,1711116650065,-502.80817476,0.00028493,2]
[320051660,1711116650075,-500.0,0.00028493,2]
[320051661,1711116650085,-520.0,0.00028493,2]
[320051662,1711116650095,-423.80855826,0.00028493,2]
[320051663,1711116650105,-172.09013315,0.00028493,2]
[320051664,1711116650114,-500.0,0.00028493,2]
[320051665,1711116650123,-500.0,0.00028493,2]
[320051666,1711116650133,-500.0,0.00028493,2]
[320051667,1711116650142,-154.81501154,0.00028493,2]
[320051668,1711116650153,-500.0,0.00028493,2]
[320051669,1711116650162,-500.0,0.00028493,2]
[320051670,1711116650172,-500.0,0.00028493,2]
[320051671,1711116650182,-500.0,0.00028493,2]
[320051672,1711116650197,-500.0,0.00028493,2]
[320051673,1711116650206,-500.0,0.00028493,2]
[320051674,1711116650217,-500.0,0.00028493,2]
[320051675,1711116650227,-500.0,0.00028493,2]
[320051676,1711116650237,-414.64018602,0.00028493,2]
[320051677,1711116650247,-1220.64,0.00028493,2]
[320051678,1711116650257,-500.0,0.00028493,2]
[320051679,1711116650266,-500.0,0.00028493,2]
[320051680,1711116650276,-500.0,0.00028493,2]
[320051681,1711116650285,-560.8,0.00028493,2]
[320051682,1711116650294,-1173.27,0.00028493,2]
[320051683,1711116650304,-500.0,0.00028493,2]
[320051684,1711116650313,-449.72754624,0.00028493,2]
[320051685,1711116650323,-500.0,0.00028493,2]
[320051686,1711116650331,-167.84,0.00028493,2]
[320051687,1711116650341,-500.0,0.00028493,2]
[320051688,1711116650351,-500.0,0.00028493,2]
[320051689,1711116650360,-500.0,0.00028493,2]
[320051690,1711116650369,-500.0,0.00028493,2]
[320051691,1711116650379,-500.0,0.00028493,2]
[320051692,1711116650388,-500.0,0.00028493,2]
[320051693,1711116650398,-500.0,0.00028493,2]
[320051694,1711116650408,-480.51373549,0.00028493,2]
[320051695,1711116650418,-1000.0,0.00028493,2]
[320051696,1711116650428,-500.0,0.00028493,2]
[320051697,1711116650442,-500.0,0.00028493,2]
[320051698,1711116650451,-4580.46,0.00028493,2]
[320051699,1711116650461,-908.89,0.00028493,2]
[320051700,1711116650470,-195.42867132,0.00028493,2]
[320051701,1711116650480,-500.0,0.00028493,2]
[320051702,1711116650489,-220.017652,0.00028493,2]
[320051703,1711116650499,-500.0,0.00028493,2]
[320051704,1711116650508,-1221.33,0.00028493,2]
[320051705,1711116650518,-3147.13,0.00028493,2]
[320051706,1711116650527,-343.57132068,0.00028493,2]
[320051707,1711116650536,-11554.42,0.00028493,2]
[320051708,1711116650546,-1468.1,0.00028493,2]
[320051709,1711116650556,-500.0,0.00028493,2]
[320051710,1711116650565,-1670.06,0.00028493,2]
[320051711,1711116650574,-477.97515065,0.00028493,2]
[320051712,1711116650583,-1507.25,0.00028493,2]
[320051713,1711116650593,-500.0,0.00028493,2]
[320051714,1711116650602,-500.0,0.00028493,2]
[320051715,1711116650612,-500.0,0.00028493,2]
[320051716,1711116650621,-500.0,0.00028493,2]
[320051717,1711116650631,-906.99,0.00028493,2]
[320051718,1711116650641,-500.0,0.00028493,2]
[320051719,1711116650650,-1211.82,0.00028493,2]
[320051720,1711116650660,-500.0,0.00028493,2]
[320051721,1711116650669,-500.0,0.00028493,2]
[320051722,1711116650678,-2487.42,0.00028493,2]
[320051723,1711116650692,-1601.34,0.00028493,2]
[320051724,1711116650701,-500.0,0.00028493,2]
[320051725,1711116650710,-661.19,0.00028493,2]
[320051726,1711116650719,-500.0,0.00028493,2]
[320051727,1711116650729,-500.0,0.00028493,2]
[320051728,1711116650737,-1187.32,0.00028493,2]
[320051729,1711116650747,-500.0,0.00028493,2]
[320051730,1711116650756,-500.0,0.00028493,2]
[320051731,1711116650765,-500.0,0.00028493,2]
[320051732,1711116650774,-2613.92,0.00028493,2]
[320051733,1711116650784,-1440.87,0.00028493,2]
[320051734,1711116650793,-500.0,0.00028493,2]
[320051735,1711116650802,-500.0,0.00028493,2]
[320051736,1711116650811,-500.0,0.00028493,2]
[320051737,1711116650820,-500.0,0.00028493,2]
[320051738,1711116650830,-500.0,0.00028493,2]
[320051739,1711116650839,-500.0,0.00028493,2]
[320051740,1711116650848,-500.0,0.00028493,2]
[320051741,1711116650858,-500.0,0.00028493,2]
[320051742,1711116650867,-17004.72,0.00028493,2]